{"text_format":"1","workbook":"xlsx","n_sheets":4,"sheets":["Dataset","Keyboard Shortcut","VBA Macro","Anchoring Cells"],"not_rendered":{"charts":0,"images":0,"macros":1,"external_links":0,"defined_names":0,"comments":0,"pivot_tables":0},"unopened":[],"bounds":{"document_bytes":16777216,"sheet_cells":100000,"rows_first":2000,"rows_last":500,"rows_between":2000,"halvings":0,"cell_chars":16384,"cell_head_chars":4096},"cells_cut":0,"cells_raw":0,"read":"whole","date_system":"1900"}

{"sheet":"Dataset","index":0,"n_rows":14,"n_cols":4,"rows_kept":14,"cut":false,"hidden":false,"merged":[[1,1,1,4],[3,3,3,4]]}
[]
[null,"Daily Wages Comparison of 2 Companies"]
[]
[null,"Name","Working Hours","Daily Wages"]
[null,"Peter",7]
[null,"Saul",8]
[null,"Samantha",8.5]
[null,"Harry",7]
[null,"Mike",9]
[null,"Sarah",8]
[null,"Sam",7]
[null,"Howard",9]
[]
[null,"Hourly Wages",10.5,9.5]

{"sheet":"Keyboard Shortcut","index":1,"n_rows":14,"n_cols":13,"rows_kept":14,"cut":false,"hidden":false,"merged":[[1,10,1,13],[3,12,3,13],[3,3,3,4],[1,1,1,4]]}
[]
[null,"Using Keyboard Shortcut",null,null,null,null,null,null,null,null,"Practice Section"]
[]
[null,"Name","Working Hours","Daily Wages",null,null,null,null,null,null,"Name","Working Hours","Daily Wages"]
[null,"Peter",7,{"$f":"$C5*C$14","v":73.5},{"$f":"$C5*D$14","v":66.5},null,null,null,null,null,"Peter",7]
[null,"Saul",8,{"$f":"$C6*C$14","v":84},{"$f":"$C6*D$14","v":76},null,null,null,null,null,"Saul",8]
[null,"Samantha",8.5,{"$f":"$C7*C$14","v":89.25},80.75,null,null,null,null,null,"Samantha",8.5]
[null,"Harry",7,{"$f":"$C8*C$14","v":73.5},66.5,null,null,null,null,null,"Harry",7]
[null,"Mike",9,{"$f":"$C9*C$14","v":94.5},{"$f":"$C9*D$14","v":85.5},null,null,null,null,null,"Mike",9]
[null,"Sarah",8,{"$f":"$C10*C$14","v":84},{"$f":"$C10*D$14","v":76},null,null,null,null,null,"Sarah",8]
[null,"Sam",7,{"$f":"$C11*C$14","v":73.5},{"$f":"$C11*D$14","v":66.5},null,null,null,null,null,"Sam",7]
[null,"Howard",9,{"$f":"$C12*C$14","v":94.5},85.5,null,null,null,null,null,"Howard",9]
[]
[null,"Hourly Wages",10.5,9.5,null,null,null,null,null,null,"Hourly Wages",10.5,9.5]

{"sheet":"VBA Macro","index":2,"n_rows":14,"n_cols":14,"rows_kept":14,"cut":false,"hidden":false,"merged":[[1,1,1,4],[3,3,3,4],[1,11,1,14],[3,13,3,14]]}
[]
[null,"Utilizing  VBA Macro",null,null,null,null,null,null,null,null,null,"Practice Section"]
[]
[null,"Name","Working Hours","Daily Wages",null,null,null,null,null,null,null,"Name","Working Hours","Daily Wages"]
[null,"Peter",7,{"$f":"$C5*C$14","v":73.5},{"$f":"$C5*D$14","v":66.5},null,null,null,null,null,null,"Peter",7]
[null,"Saul",8,{"$f":"$C6*C$14","v":84},76,null,null,null,null,null,null,"Saul",8]
[null,"Samantha",8.5,{"$f":"$C7*C$14","v":89.25},80.75,null,null,null,null,null,null,"Samantha",8.5]
[null,"Harry",7,{"$f":"$C8*C$14","v":73.5},66.5,null,null,null,null,null,null,"Harry",7]
[null,"Mike",9,{"$f":"$C9*C$14","v":94.5},85.5,null,null,null,null,null,null,"Mike",9]
[null,"Sarah",8,{"$f":"$C10*C$14","v":84},76,null,null,null,null,null,null,"Sarah",8]
[null,"Sam",7,{"$f":"$C11*C$14","v":73.5},66.5,null,null,null,null,null,null,"Sam",7]
[null,"Howard",9,{"$f":"$C12*C$14","v":94.5},85.5,null,null,null,null,null,null,"Howard",9]
[]
[null,"Hourly Wages",10.5,9.5,null,null,null,null,null,null,null,"Hourly Wages",10.5,9.5]

{"sheet":"Anchoring Cells","index":3,"n_rows":14,"n_cols":13,"rows_kept":14,"cut":false,"hidden":false,"merged":[[1,1,1,3],[1,10,1,12]]}
[]
[null,"Anchoring Cells",null,null,null,null,null,null,null,null,"Anchoring Cells"]
[]
[null,"Name","Working Hours","Daily Wages",null,null,null,null,null,null,"Name","Working Hours","Daily Wages"]
[null,"Peter",7,{"$f":"C5*$C$14","v":73.5},null,null,null,null,null,null,"Peter",7]
[null,"Saul",8,{"$f":"C6*$C$14","v":84},null,null,null,null,null,null,"Saul",8]
[null,"Samantha",8.5,89.25,null,null,null,null,null,null,"Samantha",8.5]
[null,"Harry",7,73.5,null,null,null,null,null,null,"Harry",7]
[null,"Mike",9,94.5,null,null,null,null,null,null,"Mike",9]
[null,"Sarah",8,84,null,null,null,null,null,null,"Sarah",8]
[null,"Sam",7,73.5,null,null,null,null,null,null,"Sam",7]
[null,"Howard",9,94.5,null,null,null,null,null,null,"Howard",9]
[]
[null,"Hourly Wages",10.5,null,null,null,null,null,null,null,"Hourly Wages",10.5]